[Event "VI Sunway Sitges Open 2019"]
[Site "Sitges"]
[Date "2019.12.14"]
[Round "2.30"]
[White "Esplugas Esteve, Vicenc"]
[Black "Harutyunian, Tigran K."]
[Result "1-0"]
[ECO "D87"]
[WhiteElo "2366"]
[BlackElo "2540"]
[Annotator "ChessBase"]
[PlyCount "107"]
[EventDate "2019.12.13"]
[EventType "swiss"]
[EventCountry "ESP"]
[SourceTitle "playchess.com"]
[Source "ChessBase"]
[SourceQuality "1"]
[TimeControl "40/5400+30:1800+30"]

1. d4 {[%emt 0:00:00]} Nf6 {[%emt 0:00:09]} 2. c4 {[%emt 0:00:00]} g6 {[%emt 0:00:31]} 3. Nc3 {[%emt 0:00:00]} d5 {[%emt 0:00:11]} 4. cxd5 {[%emt 0:00:00]} Nxd5 {[%emt 0:00:37]} 5. e4 {[%emt 0:00:00]} Nxc3 {[%emt 0:00:14]} 6. bxc3 {[%emt 0:00:00]} Bg7 {[%emt 0:00:06]} 7. Bc4 {[%emt 0:00:04]} c5 {[%emt 0:00:34]} 8. Ne2 {[%emt 0:00:06]} Nc6 {[%emt 0:00:33]} 9. Be3 {[%emt 0:00:07]} O-O {[%emt 0:00:19]} 10. O-O {[%emt 0:00:05]} b6 {[%emt 0:00:35]} 11. Rc1 {[%emt 0:00:26]} Bb7 {[%emt 0:04:39]} 12. Bb5 {[%emt 0:01:43]} Qc7 {[%emt 0:09:08]} 13. d5 {[%emt 0:04:46]} Rad8 {[%emt 0:09:13]} 14. c4 {[%emt 0:08:00]} e6 {[%emt 0:15:58]} 15. Bxc6 {[%emt 0:10:54]} Bxc6 {[%emt 0:01:36]} 16. Qb3 {[%emt 0:00:14]} exd5 {[%emt 0:04:18]} 17. cxd5 {[%emt 0:02:27]} Bb7 {[%emt 0:00:56]} 18. Rfd1 {[%emt 0:04:06]} Qe7 {[%emt 0:03:02]} 19. f3 {[%emt 0:12:23]} Kh8 {[%emt 0:14:57]} 20. Nf4 {[%emt 0:02:24]} Bc8 {[%emt 0:05:23]} 21. Re1 {[%emt 0:04:22]} Qh4 {[%emt 0:02:30]} 22. g3 {[%emt 0:06:44]} Qe7 {[%emt 0:01:01]} 23. Kg2 {[%emt 0:00:21]} Qd7 {[%emt 0:05:29]} 24. h4 {[%emt 0:02:21]} Be5 {[%emt 0:02:16]} 25. Rh1 {[%emt 0:01:31]} Rde8 {[%emt 0:02:32]} 26. Nd3 {[%emt 0:02:20]} h5 {[%emt 0:07:29]} 27. Nxe5 {[%emt 0:03:43]} Rxe5 {[%emt 0:00:02]} 28. Bh6 {[%emt 0:01:10]} Rfe8 {[%emt 0:00:56]} 29. Qb2 {[%emt 0:04:31]} Kh7 {[%emt 0:04:35]} 30. f4 {[%emt 0:05:09]} Qg4 {[%emt 0:02:28]} 31. fxe5 {[%emt 0:08:08]} Qxe4+ {[%emt 0:00:08]} 32. Kh2 {[%emt 0:00:41]} Kxh6 {[%emt 0:00:21]} 33. Qd2+ {[%emt 0:01:39]} Kg7 {[%emt 0:00:04]} 34. Rhe1 {[%emt 0:01:30]} Qf5 {[%emt 0:00:51]} 35. Qf4 {[%emt 0:01:49]} Qh3+ {[%emt 0:01:24]} 36. Kg1 {[%emt 0:00:07]} Bb7 {[%emt 0:00:59]} 37. Rcd1 {[%emt 0:01:16]} Rd8 {[%emt 0:01:51]} 38. Rf1 {[%emt 0:03:54]} Qf5 {[%emt 0:00:09]} 39. Qxf5 {[%emt 0:03:57]} gxf5 {[%emt 0:00:02]} 40. d6 {[%emt 0:00:00]} Be4 {[%emt 0:00:00]} 41. Kf2 {[%emt 0:04:56]} Kf8 {[%emt 0:01:57]} 42. Ke3 {[%emt 0:01:24]} Ke8 {[%emt 0:00:10]} 43. Rf4 {[%emt 0:04:27]} Kd7 {[%emt 0:03:17]} 44. Rxe4 {[%emt 0:01:09]} fxe4 {[%emt 0:00:05]} 45. Rf1 {[%emt 0:00:21]} Kc6 {[%emt 0:13:04]} 46. Rxf7 {[%emt 0:07:22]} Rd7 {[%emt 0:06:20]} 47. Rxd7 {[%emt 0:04:05]} Kxd7 {[%emt 0:00:02]} 48. g4 {[%emt 0:00:30]} hxg4 {[%emt 0:00:55]} 49. h5 {[%emt 0:00:25]} c4 {[%emt 0:00:37]} 50. h6 {[%emt 0:00:11]} c3 {[%emt 0:00:38]} 51. h7 {[%emt 0:00:11]} c2 {[%emt 0:00:04]} 52. Kd2 {[%emt 0:00:15]} e3+ {[%emt 0:00:06]} 53. Kxc2 {[%emt 0:00:10]} e2 {[%emt 0:00:03]} 54. Kd2 {[%emt 0:00:11]} 1-0

[Event "VI Sunway Sitges Open 2019"]
[Site "Sitges"]
[Date "2019.12.14"]
[Round "2.31"]
[White "Moradiabadi, Elshan"]
[Black "Sankalp Gupta"]
[Result "1/2-1/2"]
[ECO "A16"]
[WhiteElo "2539"]
[BlackElo "2365"]
[Annotator "ChessBase"]
[PlyCount "104"]
[EventDate "2019.12.13"]
[EventType "swiss"]
[EventCountry "ESP"]
[SourceTitle "playchess.com"]
[Source "ChessBase"]
[SourceQuality "1"]
[TimeControl "40/5400+30:1800+30"]

1. Nf3 {[%emt 0:08:31]} Nf6 {[%emt 0:00:00]} 2. c4 {[%emt 0:00:05]} g6 {[%emt 0:00:00]} 3. Nc3 {[%emt 0:00:01]} d5 {[%emt 0:00:00]} 4. cxd5 {[%emt 0:00:03]} Nxd5 {[%emt 0:00:00]} 5. h4 {[%emt 0:00:02]} h6 {[%emt 0:04:19]} 6. e4 {[%emt 0:00:09]} Nxc3 {[%emt 0:01:27]} 7. dxc3 {[%emt 0:00:02]} Qxd1+ {[%emt 0:00:08]} 8. Kxd1 {[%emt 0:00:00]} f6 {[%emt 0:00:18]} 9. a4 {[%emt 0:05:19]} a5 {[%emt 0:01:34]} 10. Be3 {[%emt 0:07:33]} e5 {[%emt 0:00:09]} 11. h5 {[%emt 0:00:14]} g5 {[%emt 0:00:21]} 12. Ne1 {[%emt 0:00:01]} Be6 {[%emt 0:03:56]} 13. Kc2 {[%emt 0:00:42]} Nd7 {[%emt 0:00:22]} 14. Nd3 {[%emt 0:00:09]} b6 {[%emt 0:01:55]} 15. f3 {[%emt 0:02:46]} Nc5 {[%emt 0:01:44]} 16. Bxc5 {[%emt 0:05:56]} Bxc5 {[%emt 0:10:39]} 17. g4 {[%emt 0:01:29]} Ke7 {[%emt 0:02:54]} 18. b3 {[%emt 0:00:11]} Rhd8 {[%emt 0:00:08]} 19. Be2 {[%emt 0:01:23]} Rd6 {[%emt 0:05:12]} 20. Rhd1 {[%emt 0:01:33]} Rad8 {[%emt 0:01:31]} 21. Nb2 {[%emt 0:06:44]} Rxd1 {[%emt 0:01:08]} 22. Nxd1 {[%emt 0:00:02]} Rd6 {[%emt 0:02:52]} 23. Rb1 {[%emt 0:00:26]} Rd8 {[%emt 0:01:44]} 24. Bb5 {[%emt 0:00:09]} Rd6 {[%emt 0:04:58]} 25. Nb2 {[%emt 0:02:55]} Be3 {[%emt 0:01:39]} 26. Nd3 {[%emt 0:00:45]} Kd8 {[%emt 0:08:53]} 27. Re1 {[%emt 0:01:23]} Bc5 {[%emt 0:02:36]} 28. Ba6 {[%emt 0:08:11]} c6 {[%emt 0:01:19]} 29. Bc4 {[%emt 0:07:32]} Bxc4 {[%emt 0:00:46]} 30. bxc4 {[%emt 0:00:02]} Kc7 {[%emt 0:00:23]} 31. Re2 {[%emt 0:02:37]} Rd7 {[%emt 0:00:41]} 32. Re1 {[%emt 0:01:42]} Rd6 {[%emt 0:01:05]} 33. Nc1 {[%emt 0:08:08]} Bf2 {[%emt 0:00:28]} 34. Re2 {[%emt 0:00:03]} Bc5 {[%emt 0:00:32]} 35. Nb3 {[%emt 0:00:34]} Rd7 {[%emt 0:02:13]} 36. Nd2 {[%emt 0:01:28]} Rd8 {[%emt 0:01:36]} 37. Nf1 {[%emt 0:00:26]} Rd7 {[%emt 0:00:02]} 38. Ng3 {[%emt 0:00:13]} Rd8 {[%emt 0:00:06]} 39. Nf5 {[%emt 0:00:09]} Bf8 {[%emt 0:00:02]} 40. Re1 {[%emt 0:00:00]} Rd7 {[%emt 0:00:00]} 41. Rb1 {[%emt 0:02:36]} Rh7 {[%emt 0:03:25]} 42. Rd1 {[%emt 0:00:14]} Rh8 {[%emt 0:01:38]} 43. Rd3 {[%emt 0:01:17]} Rh7 {[%emt 0:01:28]} 44. Kb3 {[%emt 0:00:34]} Rh8 {[%emt 0:00:21]} 45. Rd1 {[%emt 0:00:04]} Rh7 {[%emt 0:00:05]} 46. Kc2 {[%emt 0:00:08]} Rh8 {[%emt 0:00:03]} 47. Kd3 {[%emt 0:00:07]} Rh7 {[%emt 0:00:05]} 48. Ke2 {[%emt 0:00:03]} Rh8 {[%emt 0:00:14]} 49. Ne3 {[%emt 0:00:01]} Rh7 {[%emt 0:00:38]} 50. Nc2 {[%emt 0:00:07]} Rh8 {[%emt 0:00:34]} 51. Na1 {[%emt 0:00:06]} Rh7 {[%emt 0:00:10]} 52. Nb3 {[%emt 0:00:05]} Bc5 {[%emt 0:00:09]} 1/2-1/2

[Event "VI Sunway Sitges Open 2019"]
[Site "Sitges"]
[Date "2019.12.14"]
[Round "2.32"]
[White "Sorensen, Hampus"]
[Black "Kulaots, Kaido"]
[Result "1/2-1/2"]
[ECO "E12"]
[WhiteElo "2364"]
[BlackElo "2538"]
[Annotator "ChessBase"]
[PlyCount "55"]
[EventDate "2019.12.13"]
[EventType "swiss"]
[EventCountry "ESP"]
[SourceTitle "playchess.com"]
[Source "ChessBase"]
[SourceQuality "1"]
[TimeControl "40/5400+30:1800+30"]

1. d4 {[%emt 0:00:00]} Nf6 {[%emt 0:00:32]} 2. c4 {[%emt 0:00:09]} e6 {[%emt 0:00:21]} 3. Nf3 {[%emt 0:00:35]} b6 {[%emt 0:00:47]} 4. a3 {[%emt 0:01:08]} Bb7 {[%emt 0:00:53]} 5. Nc3 {[%emt 0:00:44]} g6 {[%emt 0:00:27]} 6. Qd3 {[%emt 0:06:09]} d5 {[%emt 0:02:08]} 7. cxd5 {[%emt 0:03:54]} exd5 {[%emt 0:00:26]} 8. Bf4 {[%emt 0:06:46]} Bg7 {[%emt 0:02:36]} 9. Qe3+ {[%emt 0:04:18]} Ne4 {[%emt 0:03:59]} 10. Bh6 {[%emt 0:04:02]} O-O {[%emt 0:01:45]} 11. Bxg7 {[%emt 0:04:26]} Kxg7 {[%emt 0:00:10]} 12. h4 {[%emt 0:00:55]} h6 {[%emt 0:10:37]} 13. Qf4 {[%emt 0:04:02]} Nd7 {[%emt 0:02:12]} 14. e3 {[%emt 0:01:57]} Ndf6 {[%emt 0:05:58]} 15. Ne5 {[%emt 0:07:18]} c5 {[%emt 0:02:25]} 16. Nxe4 {[%emt 0:11:37]} dxe4 {[%emt 0:03:21]} 17. dxc5 {[%emt 0:00:38]} bxc5 {[%emt 0:10:04]} 18. Nc4 {[%emt 0:00:58]} Qe7 {[%emt 0:19:26]} 19. Be2 {[%emt 0:06:51]} Rfd8 {[%emt 0:05:39]} 20. Rc1 {[%emt 0:06:01]} Rd5 {[%emt 0:01:15]} 21. O-O {[%emt 0:01:26]} Rad8 {[%emt 0:05:13]} 22. Rc2 {[%emt 0:03:19]} Bc8 {[%emt 0:09:08]} 23. Na5 {[%emt 0:02:30]} Bd7 {[%emt 0:08:47]} 24. Rfc1 {[%emt 0:01:58]} Be8 {[%emt 0:00:40]} 25. Qg3 {[%emt 0:05:35]} Kh7 {[%emt 0:01:14]} 26. Qf4 {[%emt 0:00:41]} Kg7 {[%emt 0:01:10]} 27. Qg3 {[%emt 0:00:02]} Kh7 {[%emt 0:00:09]} 28. Qf4 {[%emt 0:00:27]} 1/2-1/2

[Event "VI Sunway Sitges Open 2019"]
[Site "Sitges"]
[Date "2019.12.14"]
[Round "2.33"]
[White "Stefansson, Hannes"]
[Black "Sarkar, Justin"]
[Result "1-0"]
[ECO "C72"]
[WhiteElo "2538"]
[BlackElo "2360"]
[Annotator "ChessBase"]
[PlyCount "61"]
[EventDate "2019.12.13"]
[EventType "swiss"]
[EventCountry "ESP"]
[SourceTitle "playchess.com"]
[Source "ChessBase"]
[SourceQuality "1"]
[TimeControl "40/5400+30:1800+30"]

1. e4 {[%emt 0:00:53]} e5 {[%emt 0:00:35]} 2. Nf3 {[%emt 0:00:00]} Nc6 {[%emt 0:00:16]} 3. Bb5 {[%emt 0:00:34]} a6 {[%emt 0:00:20]} 4. Ba4 {[%emt 0:02:18]} d6 {[%emt 0:02:43]} 5. O-O {[%emt 0:01:23]} Bd7 {[%emt 0:00:27]} 6. c4 {[%emt 0:00:00]} g5 {[%emt 0:15:18]} 7. d4 {[%emt 0:09:35]} g4 {[%emt 0:00:39]} 8. d5 {[%emt 0:18:16]} gxf3 {[%emt 0:03:25]} 9. dxc6 {[%emt 0:00:00]} bxc6 {[%emt 0:07:02]} 10. Qxf3 {[%emt 0:03:54]} c5 {[%emt 0:04:10]} 11. Bxd7+ {[%emt 0:00:00]} Qxd7 {[%emt 0:00:04]} 12. Nc3 {[%emt 0:00:00]} Ne7 {[%emt 0:01:13]} 13. Bg5 {[%emt 0:09:42]} Rg8 {[%emt 0:07:50]} 14. Bxe7 {[%emt 0:00:10]} Bxe7 {[%emt 0:00:24]} 15. Nd5 {[%emt 0:03:36]} Rb8 {[%emt 0:02:03]} 16. b3 {[%emt 0:00:00]} Bg5 17. Qh5 {[%emt 0:35:04]} c6 {[%emt 0:03:46]} 18. Qxh7 {[%emt 0:00:00]} Kf8 {[%emt 0:01:33]} 19. Ne3 {[%emt 0:00:54]} Bxe3 {[%emt 0:37:20]} 20. fxe3 {[%emt 0:00:00]} Qe6 {[%emt 0:04:34]} 21. Rxf7+ {[%emt 0:00:00]} Qxf7 {[%emt 0:00:00]} 22. Rf1 {[%emt 0:00:00]} Rg7 {[%emt 0:05:12]} 23. Qh8+ {[%emt 0:00:00]} Rg8 {[%emt 0:00:10]} 24. Qh6+ {[%emt 0:00:00]} Ke7 {[%emt 0:00:00]} 25. Rxf7+ {[%emt 0:00:00]} Kxf7 {[%emt 0:00:00]} 26. Qxd6 {[%emt 0:00:00]} Rbd8 {[%emt 0:08:07]} 27. Qxe5 {[%emt 0:00:00]} Rd1+ {[%emt 0:00:00]} 28. Kf2 {[%emt 0:00:08]} Rd2+ {[%emt 0:00:00]} 29. Kf3 {[%emt 0:00:00]} Rgxg2 {[%emt 0:00:13]} 30. Qc7+ {[%emt 0:05:21]} Kf8 {[%emt 0:00:00]} 31. e5 {[%emt 0:00:00]} 1-0

[Event "VI Sunway Sitges Open 2019"]
[Site "Sitges"]
[Date "2019.12.14"]
[Round "2.34"]
[White "Vega Gutierrez, Sabrina"]
[Black "Narayanan, Srinath"]
[Result "0-1"]
[ECO "A87"]
[WhiteElo "2360"]
[BlackElo "2529"]
[Annotator "ChessBase"]
[PlyCount "64"]
[EventDate "2019.12.13"]
[EventType "swiss"]
[EventCountry "ESP"]
[SourceTitle "playchess.com"]
[Source "ChessBase"]
[SourceQuality "1"]
[TimeControl "40/5400+30:1800+30"]

1. d4 {[%emt 0:00:00]} f5 {[%emt 0:08:28]} 2. Nf3 {[%emt 0:01:26]} Nf6 {[%emt 0:00:45]} 3. g3 {[%emt 0:00:53]} g6 {[%emt 0:00:24]} 4. Bg2 {[%emt 0:00:10]} Bg7 {[%emt 0:00:05]} 5. O-O {[%emt 0:03:03]} O-O {[%emt 0:00:02]} 6. b3 {[%emt 0:00:26]} d6 {[%emt 0:00:10]} 7. Bb2 {[%emt 0:00:11]} c6 {[%emt 0:01:24]} 8. c4 {[%emt 0:02:32]} Qc7 {[%emt 0:03:46]} 9. Qc2 {[%emt 0:05:22]} Re8 {[%emt 0:03:42]} 10. Nc3 {[%emt 0:04:48]} e5 {[%emt 0:02:49]} 11. dxe5 {[%emt 0:06:20]} dxe5 {[%emt 0:00:14]} 12. e4 {[%emt 0:00:17]} Na6 {[%emt 0:03:42]} 13. Rad1 {[%emt 0:13:21]} fxe4 {[%emt 0:26:42]} 14. Nxe4 {[%emt 0:03:02]} Nxe4 {[%emt 0:02:01]} 15. Qxe4 {[%emt 0:00:08]} Bf5 {[%emt 0:00:03]} 16. Qe2 {[%emt 0:04:54]} Nb4 {[%emt 0:03:08]} 17. Nh4 {[%emt 0:03:24]} e4 {[%emt 0:03:42]} 18. Bxg7 {[%emt 0:02:18]} Qxg7 {[%emt 0:00:38]} 19. Kh1 {[%emt 0:20:56]} Nd3 {[%emt 0:02:12]} 20. Nxf5 {[%emt 0:02:06]} gxf5 {[%emt 0:00:03]} 21. f3 {[%emt 0:00:22]} Rad8 {[%emt 0:07:03]} 22. fxe4 {[%emt 0:01:05]} Qd4 {[%emt 0:00:18]} 23. Rxd3 {[%emt 0:06:00]} Qxd3 {[%emt 0:00:13]} 24. Qh5 {[%emt 0:00:06]} Kh8 {[%emt 0:18:16]} 25. exf5 {[%emt 0:02:52]} Qe2 {[%emt 0:00:17]} 26. Qh4 {[%emt 0:02:15]} Rd1 {[%emt 0:01:48]} 27. Qf6+ {[%emt 0:08:42]} Kg8 {[%emt 0:00:05]} 28. Kg1 {[%emt 0:00:16]} Qe3+ {[%emt 0:01:58]} 29. Kh1 {[%emt 0:00:03]} Rxf1+ {[%emt 0:00:15]} 30. Bxf1 {[%emt 0:00:04]} Rf8 {[%emt 0:00:14]} 31. Qh4 {[%emt 0:02:09]} Qf3+ {[%emt 0:00:10]} 32. Kg1 {[%emt 0:00:03]} Qxf5 {[%emt 0:00:07]} 0-1

[Event "VI Sunway Sitges Open 2019"]
[Site "Sitges"]
[Date "2019.12.14"]
[Round "2.35"]
[White "Krysa, Leandro"]
[Black "Pablo Mari, Alejandro"]
[Result "1-0"]
[ECO "A37"]
[WhiteElo "2527"]
[BlackElo "2356"]
[Annotator "ChessBase"]
[PlyCount "61"]
[EventDate "2019.12.13"]
[EventType "swiss"]
[EventCountry "ESP"]
[SourceTitle "playchess.com"]
[Source "ChessBase"]
[SourceQuality "1"]
[TimeControl "40/5400+30:1800+30"]

1. Nf3 {[%emt 0:00:00]} c5 {[%emt 0:02:04]} 2. c4 {[%emt 0:00:34]} Nc6 {[%emt 0:00:48]} 3. g3 {[%emt 0:03:40]} e5 {[%emt 0:01:05]} 4. Bg2 {[%emt 0:01:33]} g6 {[%emt 0:02:06]} 5. O-O {[%emt 0:01:02]} Bg7 {[%emt 0:00:32]} 6. Nc3 {[%emt 0:00:25]} Nge7 {[%emt 0:01:25]} 7. a3 {[%emt 0:01:15]} a5 {[%emt 0:13:17]} 8. Ne1 {[%emt 0:00:56]} h5 {[%emt 0:13:28]} 9. h4 {[%emt 0:08:35]} O-O {[%emt 0:07:25]} 10. d3 {[%emt 0:00:40]} d6 {[%emt 0:05:58]} 11. Nc2 {[%emt 0:03:57]} Be6 {[%emt 0:01:05]} 12. Nd5 {[%emt 0:19:54]} Bxd5 {[%emt 0:06:58]} 13. cxd5 {[%emt 0:00:21]} Nd4 {[%emt 0:03:34]} 14. Nxd4 {[%emt 0:04:24]} exd4 {[%emt 0:05:56]} 15. Bg5 {[%emt 0:02:28]} Qc7 {[%emt 0:05:28]} 16. b4 {[%emt 0:05:55]} axb4 {[%emt 0:10:05]} 17. axb4 {[%emt 0:00:35]} b6 {[%emt 0:00:27]} 18. Qb3 {[%emt 0:06:52]} Kh7 {[%emt 0:00:45]} 19. Rxa8 {[%emt 0:03:25]} Rxa8 {[%emt 0:00:02]} 20. bxc5 {[%emt 0:00:17]} bxc5 {[%emt 0:00:25]} 21. Rb1 {[%emt 0:00:06]} Bh6 {[%emt 0:04:00]} 22. Be4 {[%emt 0:17:36]} Bxg5 {[%emt 0:05:43]} 23. hxg5 {[%emt 0:00:03]} Kg7 {[%emt 0:02:20]} 24. Kg2 {[%emt 0:03:44]} Ra7 {[%emt 0:03:42]} 25. Qb2 {[%emt 0:04:25]} Qa5 {[%emt 0:01:21]} 26. Qc1 {[%emt 0:04:15]} Qa2 {[%emt 0:01:24]} 27. Rb8 {[%emt 0:01:58]} Qxe2 {[%emt 0:01:07]} 28. Qf4 {[%emt 0:00:19]} Nf5 {[%emt 0:00:49]} 29. Bxf5 {[%emt 0:00:34]} gxf5 {[%emt 0:00:05]} 30. Qxd6 {[%emt 0:00:27]} Qe7 {[%emt 0:00:26]} 31. Qh6# {[%emt 0:00:07]} 1-0

[Event "VI Sunway Sitges Open 2019"]
[Site "Sitges"]
[Date "2019.12.14"]
[Round "2.36"]
[White "Pajeken, Jakob Leon"]
[Black "Sindarov, Javokhir"]
[Result "0-1"]
[ECO "D76"]
[WhiteElo "2350"]
[BlackElo "2526"]
[Annotator "ChessBase"]
[PlyCount "132"]
[EventDate "2019.12.13"]
[EventType "swiss"]
[EventCountry "ESP"]
[SourceTitle "playchess.com"]
[Source "ChessBase"]
[SourceQuality "1"]
[TimeControl "40/5400+30:1800+30"]

1. d4 {[%emt 0:00:00]} Nf6 {[%emt 0:00:00]} 2. Nf3 {[%emt 0:00:01]} g6 {[%emt 0:00:00]} 3. g3 {[%emt 0:00:28]} Bg7 {[%emt 0:00:00]} 4. Bg2 {[%emt 0:00:06]} O-O {[%emt 0:00:00]} 5. O-O {[%emt 0:00:04]} d5 {[%emt 0:00:00]} 6. c4 {[%emt 0:01:29]} Nc6 {[%emt 0:00:01]} 7. cxd5 {[%emt 0:01:47]} Nxd5 {[%emt 0:00:05]} 8. e4 {[%emt 0:00:08]} Nb6 {[%emt 0:00:04]} 9. d5 {[%emt 0:00:08]} Na5 {[%emt 0:00:04]} 10. Nc3 {[%emt 0:00:18]} c6 {[%emt 0:00:08]} 11. Bf4 {[%emt 0:00:30]} Nac4 {[%emt 0:00:15]} 12. Qe2 {[%emt 0:07:02]} cxd5 {[%emt 0:12:59]} 13. Nxd5 {[%emt 0:05:41]} Nxd5 {[%emt 0:10:54]} 14. exd5 {[%emt 0:06:29]} Nb6 {[%emt 0:00:08]} 15. Rfd1 {[%emt 0:21:56]} Nxd5 {[%emt 0:00:26]} 16. Be5 {[%emt 0:04:12]} e6 {[%emt 0:00:13]} 17. Nd4 {[%emt 0:15:03]} f6 {[%emt 0:19:40]} 18. Nxe6 {[%emt 0:00:41]} Bxe6 {[%emt 0:03:08]} 19. Bc7 {[%emt 0:00:15]} Nxc7 {[%emt 0:01:56]} 20. Rxd8 {[%emt 0:00:06]} Raxd8 {[%emt 0:00:11]} 21. Rc1 {[%emt 0:00:19]} Rf7 {[%emt 0:00:10]} 22. Rxc7 {[%emt 0:01:37]} Rxc7 {[%emt 0:00:06]} 23. Qxe6+ {[%emt 0:00:04]} Kh8 {[%emt 0:00:06]} 24. Bd5 {[%emt 0:03:16]} f5 {[%emt 0:01:09]} 25. b3 {[%emt 0:04:25]} Bd4 {[%emt 0:02:03]} 26. Bc4 {[%emt 0:00:29]} Kg7 {[%emt 0:00:33]} 27. h4 {[%emt 0:03:48]} h5 {[%emt 0:00:43]} 28. a4 {[%emt 0:01:28]} Bf6 {[%emt 0:00:24]} 29. Qe3 {[%emt 0:02:00]} Re7 {[%emt 0:00:11]} 30. Qc5 {[%emt 0:01:48]} b6 {[%emt 0:03:06]} 31. Qc6 {[%emt 0:01:54]} Bd4 {[%emt 0:01:15]} 32. Qf3 {[%emt 0:01:52]} a5 {[%emt 0:08:35]} 33. Kg2 {[%emt 0:02:18]} Bc5 {[%emt 0:02:34]} 34. Bd5 {[%emt 0:00:47]} Kh7 {[%emt 0:01:37]} 35. Kh3 {[%emt 0:03:02]} Bxf2 {[%emt 0:06:42]} 36. Qxf2 {[%emt 0:00:21]} Rxd5 {[%emt 0:00:05]} 37. Qxb6 {[%emt 0:00:49]} Rd3 {[%emt 0:00:11]} 38. Qb8 {[%emt 0:02:10]} Rc3 {[%emt 0:03:28]} 39. b4 {[%emt 0:03:23]} axb4 {[%emt 0:02:11]} 40. Qxb4 {[%emt 0:00:00]} Ree3 {[%emt 0:00:00]} 41. Qb7+ {[%emt 0:02:19]} Kg8 {[%emt 0:05:30]} 42. Qd5+ {[%emt 0:01:38]} Kg7 {[%emt 0:01:32]} 43. Qd7+ {[%emt 0:00:15]} Kh6 {[%emt 0:07:36]} 44. Qd6 {[%emt 0:00:06]} Re8 {[%emt 0:00:34]} 45. a5 {[%emt 0:01:33]} Rce3 {[%emt 0:01:58]} 46. a6 {[%emt 0:01:02]} R3e7 {[%emt 0:00:10]} 47. Qc5 {[%emt 0:01:32]} Rd7 {[%emt 0:00:50]} 48. Qc6 {[%emt 0:13:38]} Red8 {[%emt 0:01:08]} 49. Kg2 {[%emt 0:00:16]} Ra7 {[%emt 0:00:20]} 50. Kh3 {[%emt 0:00:24]} Rda8 {[%emt 0:00:10]} 51. Qc5 {[%emt 0:00:23]} Kh7 {[%emt 0:01:09]} 52. Qd6 {[%emt 0:00:51]} Rxa6 {[%emt 0:01:10]} 53. Qd7+ {[%emt 0:00:52]} Kg8 {[%emt 0:00:21]} 54. Qd5+ {[%emt 0:00:04]} Kg7 {[%emt 0:00:07]} 55. Qd7+ {[%emt 0:00:38]} Kf8 {[%emt 0:00:19]} 56. Qh7 {[%emt 0:00:39]} Re8 {[%emt 0:00:58]} 57. Qh8+ {[%emt 0:00:36]} Kf7 {[%emt 0:00:06]} 58. Qh7+ {[%emt 0:00:09]} Kf6 {[%emt 0:00:04]} 59. Qd7 {[%emt 0:00:14]} Rae6 {[%emt 0:00:07]} 60. Qd4+ {[%emt 0:00:24]} Kf7 {[%emt 0:00:05]} 61. Kg2 {[%emt 0:01:00]} Re4 {[%emt 0:00:31]} 62. Qd5+ {[%emt 0:00:41]} Kg7 {[%emt 0:00:05]} 63. Kh3 {[%emt 0:01:38]} R8e7 {[%emt 0:01:09]} 64. Qd6 {[%emt 0:01:07]} f4 {[%emt 0:02:22]} 65. gxf4 {[%emt 0:00:22]} Re2 {[%emt 0:00:07]} 66. Qd4+ {[%emt 0:00:59]} Kh7 {[%emt 0:00:05]} 0-1

[Event "VI Sunway Sitges Open 2019"]
[Site "Sitges"]
[Date "2019.12.14"]
[Round "2.37"]
[White "Bjerre, Jonas Buhl"]
[Black "Borocz, Istvan"]
[Result "1-0"]
[ECO "C65"]
[WhiteElo "2526"]
[BlackElo "2346"]
[Annotator "ChessBase"]
[PlyCount "135"]
[EventDate "2019.12.13"]
[EventType "swiss"]
[EventCountry "ESP"]
[SourceTitle "playchess.com"]
[Source "ChessBase"]
[SourceQuality "1"]
[TimeControl "40/5400+30:1800+30"]

1. e4 {[%emt 0:00:00]} e5 {[%emt 0:00:00]} 2. Nf3 {[%emt 0:00:00]} Nc6 {[%emt 0:00:00]} 3. Bb5 {[%emt 0:00:00]} Nf6 {[%emt 0:00:27]} 4. d3 {[%emt 0:00:48]} Bc5 {[%emt 0:00:28]} 5. c3 {[%emt 0:01:37]} O-O {[%emt 0:21:21]} 6. O-O {[%emt 0:03:37]} d6 {[%emt 0:03:01]} 7. Nbd2 {[%emt 0:02:08]} Bd7 {[%emt 0:03:33]} 8. h3 {[%emt 0:08:16]} a6 {[%emt 0:03:05]} 9. Ba4 {[%emt 0:02:11]} b5 {[%emt 0:07:56]} 10. Bc2 {[%emt 0:02:37]} Bb6 {[%emt 0:00:05]} 11. Re1 {[%emt 0:02:51]} Ne7 {[%emt 0:00:16]} 12. Nf1 {[%emt 0:05:54]} Ng6 {[%emt 0:00:26]} 13. d4 {[%emt 0:01:16]} h6 {[%emt 0:01:43]} 14. Be3 {[%emt 0:04:36]} Re8 {[%emt 0:06:49]} 15. Ng3 {[%emt 0:03:15]} c5 {[%emt 0:05:01]} 16. dxc5 {[%emt 0:23:50]} Bxc5 {[%emt 0:04:49]} 17. Qd2 {[%emt 0:09:23]} Qb6 {[%emt 0:05:27]} 18. Rad1 {[%emt 0:02:58]} Rad8 {[%emt 0:10:42]} 19. Bb3 {[%emt 0:07:50]} Be6 {[%emt 0:06:34]} 20. Bxe6 {[%emt 0:01:12]} fxe6 {[%emt 0:05:35]} 21. Qc2 {[%emt 0:01:22]} Bxe3 {[%emt 0:03:44]} 22. Rxe3 {[%emt 0:00:04]} Nf4 {[%emt 0:00:36]} 23. Ne1 {[%emt 0:02:21]} Rf8 {[%emt 0:01:00]} 24. Nd3 {[%emt 0:01:32]} Rf7 {[%emt 0:01:34]} 25. Nf1 {[%emt 0:02:10]} Rdf8 {[%emt 0:00:54]} 26. Nxf4 {[%emt 0:01:05]} exf4 {[%emt 0:00:02]} 27. Ree1 {[%emt 0:00:17]} e5 {[%emt 0:03:46]} 28. Qb3 {[%emt 0:00:13]} Ne8 {[%emt 0:01:11]} 29. a4 {[%emt 0:01:25]} Kh7 {[%emt 0:00:14]} 30. axb5 {[%emt 0:01:06]} axb5 {[%emt 0:00:02]} 31. Qb4 {[%emt 0:01:00]} Rf6 {[%emt 0:00:33]} 32. Nd2 {[%emt 0:00:56]} R8f7 {[%emt 0:03:51]} 33. Nc4 {[%emt 0:02:46]} Qc6 {[%emt 0:00:10]} 34. Na5 {[%emt 0:00:35]} Qd7 {[%emt 0:00:13]} 35. f3 {[%emt 0:00:41]} Rg6 {[%emt 0:00:36]} 36. Kh2 {[%emt 0:01:12]} Rff6 {[%emt 0:01:05]} 37. Re2 {[%emt 0:00:34]} Rg3 {[%emt 0:00:41]} 38. c4 {[%emt 0:01:30]} Rfg6 {[%emt 0:00:48]} 39. Qe1 {[%emt 0:02:05]} bxc4 {[%emt 0:00:22]} 40. Nxc4 {[%emt 0:00:00]} Qe7 {[%emt 0:00:00]} 41. Nd2 {[%emt 0:05:06]} Nc7 {[%emt 0:10:04]} 42. Nf1 {[%emt 0:01:52]} R3g5 {[%emt 0:00:36]} 43. Qb4 {[%emt 0:03:48]} Rh5 {[%emt 0:15:59]} 44. Kh1 {[%emt 0:06:43]} Na6 {[%emt 0:01:31]} 45. Qc4 {[%emt 0:05:51]} Nc5 {[%emt 0:00:05]} 46. b4 {[%emt 0:00:36]} Ne6 {[%emt 0:00:11]} 47. Nh2 {[%emt 0:00:20]} Nd4 {[%emt 0:00:58]} 48. Ra2 {[%emt 0:00:45]} Rhg5 {[%emt 0:02:22]} 49. Rb1 {[%emt 0:02:27]} Rg3 {[%emt 0:00:19]} 50. b5 {[%emt 0:02:18]} d5 {[%emt 0:02:06]} 51. Qc8 {[%emt 0:06:23]} dxe4 {[%emt 0:00:39]} 52. Ra8 {[%emt 0:00:27]} Re6 {[%emt 0:00:13]} 53. fxe4 {[%emt 0:00:27]} f3 {[%emt 0:00:34]} 54. gxf3 {[%emt 0:00:19]} Qh4 {[%emt 0:01:13]} 55. Qg8+ {[%emt 0:01:14]} Kg6 {[%emt 0:00:02]} 56. Ra7 {[%emt 0:00:56]} Qf6 {[%emt 0:01:28]} 57. Rf1 {[%emt 0:00:53]} Rd6 {[%emt 0:00:37]} 58. Ng4 {[%emt 0:00:21]} Rxg4 {[%emt 0:00:23]} 59. hxg4 {[%emt 0:00:03]} Qh4+ {[%emt 0:00:40]} 60. Kg2 {[%emt 0:00:18]} Ne6 {[%emt 0:00:37]} 61. Qf7+ {[%emt 0:00:39]} Kh7 {[%emt 0:00:28]} 62. Qf5+ {[%emt 0:00:03]} Kh8 {[%emt 0:00:42]} 63. Ra8+ {[%emt 0:00:04]} Nd8 {[%emt 0:00:04]} 64. Qf8+ {[%emt 0:00:18]} Kh7 65. Qf5+ {[%emt 0:00:22]} Kg8 66. Qxe5 Rd2+ {[%emt 0:00:03]} 67. Kg1 Kh7 {[%emt 0:00:33]} 68. Qd5 {[%emt 0:00:14]} 1-0